bitfinex-derivatives/quotes_ETHF0:USTF0_20250428
["timestamp","ask_amount","ask_price","bid_price","bid_amount"]
[1745820377271,5.888,1799.7,1799.6,44.08447]
[1745820377772,1.6637,1799.8,1799.7,0.77773]
[1745820377964,1.6637,1799.8,1799.7,3.98553]
[1745820378866,1.6637,1799.8,1799.7,3.2078]
[1745820379070,2.44139,1799.8,1799.6,43.3067]
[1745820379263,0.8289,1799.7,1799.6,43.3067]
[1745820379462,2.4625,1799.7,1799.6,40.8]
[1745820379668,2.4625,1799.7,1799.6,41.57777]
[1745820379868,2.4625,1799.7,1799.6,40.8]
[1745820380669,2.4625,1799.7,1799.6,41.57777]
[1745820380870,2.4625,1799.7,1799.6,40.8]
[1745820381074,3.24023,1799.7,1799.6,40.8]
[1745820381870,12.7071752,1799.7,1799.2,0.77793]
[1745820382174,0.77787,1799.4,1799.2,0.77793]
[1745820382375,2.5267,1799.3,1799.2,0.77793]
[1745820382674,2.5267,1799.3,1799.2,2.42173]
[1745820382975,2.5267,1799.3,1799.2,42.4438]
[1745820383165,3.3046,1799.3,1799.2,42.4438]
[1745820383366,2.5267,1799.3,1799.2,42.4438]
[1745820383874,0.77789,1799.4,1799.2,42.4438]
[1745820384077,12.1297,1799.6,1799.3,2.4859]
[1745820384275,0.77786,1799.4,1799.3,2.4859]
[1745820384475,5.888,1799.6,1799.3,5.6937]
[1745820384679,6.6658,1799.6,1799.4,1.6966]
[1745820384979,0.77782,1799.5,1799.4,1.6966]
[1745820385168,2.49522,1799.5,1799.4,1.6966]
[1745820385571,0.77786,1799.4,1799.3,3.2078]
[1745820385765,0.7779,1799.3,1799.2,40.8]
[1745820386267,2.4953,1799.3,1799.2,40.8]
[1745820388375,2.4953,1799.3,1799.2,42.4488]
[1745820390375,0.7779,1799.3,1799.2,42.4488]
[1745820390574,0.77789,1799.4,1799.2,43.2665]
[1745820390776,0.77789,1799.4,1799.3,2.5169]
[1745820391280,2.38949,1799.4,1799.3,2.5169]
[1745820393277,1.94484,1799.3,1798.7,3.2078]
[1745820393482,0.77803,1799.0,1798.9,0.8193]
[1745820393678,0.77803,1799.0,1798.9,43.3659]
[1745820394080,0.77803,1799.0,1798.9,46.5737]
[1745820394380,4.46492,1799.3,1799.1,0.77797]
[1745820394580,4.4649,1799.3,1799.2,5.8189]
[1745820394773,4.4649,1799.3,1799.2,6.59685]
[1745820394974,0.7779,1799.3,1799.2,6.59685]
[1745820395282,0.77789,1799.4,1799.2,47.39685]
[1745820395482,0.77789,1799.4,1799.3,2.5755]
[1745820395780,5.2754,1799.6,1799.3,2.5755]
[1745820395976,5.888,1799.7,1799.4,4.8016]
[1745820396175,0.77777,1799.6,1799.5,2.4337]
[1745820396981,0.77777,1799.7,1799.5,3.21152]
[1745820397282,0.77777,1799.7,1799.6,1.5938]
[1745820397983,2.35417,1799.7,1799.6,1.5938]
[1745820400680,1.5764,1799.7,1799.6,1.5938]
[1745820403583,2.35413,1799.7,1799.6,1.5938]
[1745820403884,2.35413,1799.7,1799.4,4.0477]
[1745820404082,2.35418,1799.6,1799.4,5.7615]
[1745820404274,2.35418,1799.6,1799.5,1.7138]
[1745820404676,1.5764,1799.6,1799.5,1.7138]
[1745820405182,2.35417,1799.6,1799.5,1.7138]
[1745820405579,0.77775,1799.7,1799.5,1.7138]
[1745820405979,0.77775,1799.7,1799.6,3.2078]
[1745820406178,9.23892,1799.8,1799.6,3.2078]
[1745820406373,9.23892,1799.8,1799.7,2.4606]
[1745820406576,9.33140616,1799.8,1799.7,2.4606]
[1745820406984,9.23892,1799.8,1799.7,2.4606]
[1745820408288,9.33140602,1799.8,1799.7,2.4606]
[1745820408585,0.77773,1799.7,1799.6,3.2078]
[1745820408785,2.48323,1799.7,1799.6,3.2078]
[1745820409888,0.77777,1799.6,1799.5,2.5658]
[1745820410587,0.77777,1799.6,1799.2,40.8]
[1745820410588,0.7779,1799.3,1799.2,40.8]
[1745820411179,0.7779,1799.3,1799.2,42.4503]
[1745820412085,0.7779,1799.3,1799.2,40.8]
[1745820412387,2.4049,1799.3,1799.2,40.8]
[1745820414186,6.0909,1799.3,1799.2,40.8]
[1745820414489,6.18341667,1799.3,1799.2,40.8]
[1745820414986,0.77799,1799.1,1799.0,1.6503]
[1745820415385,0.77799,1799.1,1799.0,42.4503]
[1745820415586,2.37129,1799.1,1799.0,42.4503]
[1745820415787,2.37129,1799.1,1799.0,40.8]
[1745820417283,3.19529,1799.1,1799.0,40.8]
[1745820417488,0.77803,1799.0,1798.9,3.2078]
[1745820417682,2.46283,1799.0,1798.9,3.2078]
[1745820417881,2.46283,1799.0,1798.9,4.9025]
[1745820418083,2.46283,1799.0,1798.9,45.7025]
[1745820419491,0.77803,1799.0,1798.9,45.7025]
[1745820419687,0.77802,1799.1,1798.9,46.506]
[1745820419891,9.574,1799.3,1799.0,2.47273]
[1745820420188,0.77799,1799.2,1799.1,4.9025]
[1745820426691,0.77803,1799.0,1798.9,44.0078]
[1745820426993,0.77803,1799.0,1798.9,45.7047]
[1745820427197,1.61052,1799.1,1798.9,45.7047]
[1745820427492,3.24902,1799.1,1799.0,1.6969]
[1745820428298,0.77798,1799.2,1799.0,1.6969]
[1745820428493,3.24898,1799.2,1799.0,1.6969]
[1745820428996,0.77799,1799.1,1799.0,1.6969]
[1745820429797,2.36319,1799.1,1799.0,1.6969]
[1745820429982,0.77803,1799.0,1798.9,44.0078]
[1745820430183,2.36323,1799.0,1798.9,45.6804]
[1745820431895,2.36323,1799.0,1798.9,40.8]
[1745820432085,2.45576838,1799.0,1798.9,40.8]
[1745820432698,6.14176838,1799.0,1798.9,40.8]
[1745820433090,6.04923,1799.0,1798.9,40.8]
[1745820433494,6.14176596,1799.0,1798.9,40.8]
[1745820434605,6.14176667,1799.0,1798.9,40.8]
[1745820434895,0.77808,1798.9,1798.8,2.5589]
[1745820435199,3.21388,1798.9,1798.8,2.5589]
[1745820435391,3.21388,1798.9,1798.8,43.3589]
[1745820438293,0.77808,1798.9,1798.8,43.3589]
[1745820439192,0.77808,1798.9,1798.8,44.2245]
[1745820440305,0.77808,1798.9,1798.8,43.3589]
[1745820440502,2.38898,1798.9,1798.8,43.3589]
[1745820441503,2.38898,1798.9,1798.8,41.6124]
[1745820442404,0.77816,1798.7,1798.6,2.5089]
[1745820443405,0.77815,1798.8,1798.6,48.3089]
[1745820443608,0.77815,1798.8,1798.7,4.8833]
[1745820444304,0.77815,1798.8,1798.7,45.6833]
[1745820447515,0.77816,1798.7,1798.6,0.8334]
[1745820447708,0.77816,1798.7,1798.6,2.4771]
[1745820447910,2.44856,1798.7,1798.6,43.2771]
[1745820448409,2.44856,1798.7,1798.6,40.8]
[1745820449007,2.44856,1798.7,1798.6,43.2985]
[1745820451512,5.888,1798.9,1798.6,44.1694]
[1745820451814,0.77812,1798.8,1798.7,1.6007]
[1745820455210,2.52342,1798.8,1798.7,1.6007]
[1745820457919,2.52342,1798.8,1798.7,4.8085]
[1745820458512,2.52342,1798.8,1798.7,1.6007]
[1745820460220,0.77812,1798.8,1798.7,1.6007]
[1745820461821,0.77812,1798.8,1798.7,4.8085]
[1745820462021,9.574,1799.0,1798.7,4.8085]
[1745820462217,0.77808,1798.9,1798.8,1.7175]
[1745820463023,3.686,1799.4,1798.9,0.77806]
[1745820463226,0.7779,1799.3,1799.2,3.2078]
[1745820464028,2.4039,1799.3,1799.2,3.2078]
[1745820464321,3.2227,1799.3,1799.2,3.2078]
[1745820466732,3.31521604,1799.3,1799.2,3.2078]
[1745820467025,0.77799,1799.1,1799.0,1.7445]
[1745820467218,0.77803,1799.0,1798.9,3.2078]
[1745820467417,2.50493,1799.0,1798.9,3.2078]
[1745820468225,0.77808,1798.9,1798.8,1.6174]
[1745820468416,1.58528,1798.9,1798.8,1.6174]
[1745820471727,1.58528,1798.9,1798.8,4.8252]
[1745820473726,1.58528,1798.9,1798.8,3.2078]
[1745820473925,0.77816,1798.7,1798.6,45.6198]
[1745820476332,0.77816,1798.7,1798.6,43.2294]
[1745820476635,0.77816,1798.7,1798.6,46.4372]
[1745820479131,0.77816,1798.7,1798.6,43.2294]
[1745820479338,0.77816,1798.7,1798.6,41.6174]
[1745820479838,2.46346,1798.7,1798.6,41.6174]
[1745820480138,2.46346,1798.7,1798.6,40.8]
[1745820480526,0.77821,1798.6,1798.5,3.2078]
[1745820480731,0.77829,1798.4,1798.3,3.2078]
[1745820481032,0.77829,1798.4,1798.3,44.0078]
[1745820482036,0.77829,1798.4,1798.3,45.7024]
[1745820483435,0.77808,1798.9,1798.7,0.77816]
[1745820483627,0.77808,1798.9,1798.8,4.9024]
[1745820485736,0.77808,1798.9,1798.8,6.5468]
[1745820487834,3.686,1799.0,1798.8,6.5468]
[1745820488045,3.686,1799.0,1798.9,1.66]
[1745820489240,4.5205,1799.0,1798.9,1.66]
[1745820489433,3.686,1799.0,1798.9,1.66]
[1745820491839,3.686,1799.0,1798.9,2.43808]
[1745820493139,1.6797,1799.1,1798.9,2.43808]
[1745820493342,1.6797,1799.1,1799.0,2.38653]
[1745820493847,1.6797,1799.1,1799.0,5.59433]
[1745820494342,0.8345,1799.2,1799.0,5.59433]
[1745820494642,0.8345,1799.2,1799.1,2.5354]
[1745820494837,5.888,1799.3,1799.2,0.77795]
[1745820495042,0.8643,1799.5,1799.4,0.77786]
[1745820495243,5.2927,1799.6,1799.5,0.77782]
[1745820495437,5.2927,1799.6,1799.5,43.26172]
[1745820495738,5.2927,1799.6,1799.5,44.11322]
[1745820496844,3.685,1799.6,1799.5,44.11322]
[1745820497046,3.685,1799.6,1799.5,44.95242]
[1745820497440,6.7523,1799.7,1799.6,0.77777]
[1745820497644,0.8643,1799.7,1799.6,2.44307]
[1745820498544,1.6525,1799.8,1799.7,0.77773]
[1745820498843,2.4506,1799.8,1799.7,2.44303]
[1745820499540,3.22829,1799.8,1799.6,3.2078]
[1745820499842,1.7003,1799.7,1799.6,0.77777]
[1745820500042,1.7003,1799.7,1799.5,44.1547]
[1745820500548,0.7778,1799.6,1799.4,3.2078]
[1745820500747,1.7003,1799.5,1799.4,3.2078]
[1745820500947,2.5131,1799.5,1799.4,5.71106]
[1745820501248,2.5131,1799.5,1799.4,6.51106]
[1745820501546,3.684,1799.6,1799.5,0.77782]
[1745820501748,3.684,1799.6,1799.5,2.50322]
[1745820506344,4.4963,1799.6,1799.5,2.50322]
[1745820506544,1.59007,1799.6,1799.5,1.7254]
[1745820506738,3.31737,1799.6,1799.5,1.7254]
[1745820507042,3.3174,1799.6,1799.4,3.98564]
[1745820507248,1.7273,1799.5,1799.4,5.67634]
[1745820508255,2.50512,1799.5,1799.4,4.8985]
[1745820508553,2.50512,1799.5,1799.4,5.67636]
[1745820508851,2.50512,1799.5,1799.4,3.2078]
[1745820510647,2.50512,1799.5,1799.4,3.98566]
[1745820510851,1.7273,1799.5,1799.4,3.98566]
[1745820511352,2.5346,1799.5,1799.4,3.98566]
[1745820511551,2.5346,1799.5,1799.4,3.2078]
[1745820511752,3.31242,1799.5,1799.2,3.98572]
[1745820511943,1.5776,1799.4,1799.3,0.7779]
[1745820512447,1.5776,1799.4,1799.3,2.4204]
[1745820513655,4.4963,1799.6,1799.5,0.77782]
[1745820513955,6.0739,1799.6,1799.4,6.41922]
[1745820514254,6.0739,1799.6,1799.5,0.77782]
[1745820514955,6.0739,1799.6,1799.4,6.41924]
[1745820515754,6.0739,1799.6,1799.5,1.7183]
[1745820515958,6.85167,1799.6,1799.5,1.7183]
[1745820517156,6.85167,1799.6,1799.4,3.9989]
[1745820517157,0.77782,1799.5,1799.4,3.9989]
[1745820517350,2.38982,1799.5,1799.4,3.9989]
[1745820517551,2.38982,1799.5,1799.4,3.2078]
[1745820517755,0.77792,1799.3,1799.2,3.2078]
[1745820517955,0.77795,1799.2,1799.1,0.872]
[1745820518153,0.77799,1799.1,1799.0,3.2078]
[1745820518359,0.77803,1799.0,1798.9,1.5908]
[1745820518758,2.46843,1799.0,1798.9,42.3908]
[1745820519851,9.8999,1799.4,1798.9,47.3908]
[1745820520159,0.77795,1799.2,1799.0,5.6078]
[1745820520362,0.77795,1799.2,1799.1,2.3936]
[1745820521655,5.888,1799.4,1799.1,2.3936]
[1745820521862,0.7779,1799.3,1799.2,1.6717]
[1745820522053,0.7779,1799.3,1799.2,42.4717]
[1745820522668,0.7779,1799.3,1799.2,45.6795]
[1745820528467,0.7779,1799.3,1799.2,46.45745]
[1745820528868,2.4228,1799.5,1799.2,46.45745]
[1745820529068,2.4228,1799.5,1799.3,2.5771]
[1745820529260,0.7998,1799.5,1799.4,2.5711]
[1745820529864,0.7998,1799.5,1799.4,43.3711]
[1745820530063,0.7998,1799.5,1799.4,46.5789]
[1745820530762,2.4108,1799.5,1799.4,46.5789]
[1745820531362,2.4108,1799.5,1799.4,43.3711]
[1745820533566,2.4108,1799.5,1799.4,44.14896]
[1745820533969,2.4108,1799.5,1799.4,47.35676]
[1745820534567,2.4108,1799.5,1799.4,40.8]
[1745820534771,3.18862,1799.5,1799.4,40.8]
[1745820535068,0.7779,1799.3,1799.2,3.2078]
[1745820535665,3.23047,1799.4,1799.2,44.0078]
[1745820535867,1.5972,1799.3,1799.2,44.0078]
[1745820536068,1.5972,1799.3,1799.2,45.6634]
[1745820537967,2.3751,1799.3,1799.2,45.6634]
[1745820538369,2.3751,1799.3,1799.2,44.0078]
[1745820541267,2.3751,1799.3,1799.2,45.6943]
[1745820542068,1.5972,1799.3,1799.2,46.47225]
[1745820542270,1.5972,1799.3,1799.2,45.6943]
[1745820542476,1.5972,1799.3,1799.2,46.47225]
[1745820542673,0.77787,1799.4,1799.2,46.47225]
[1745820542872,2.47477,1799.4,1799.3,1.6155]
[1745820544376,1.6969,1799.4,1799.3,2.3934]
[1745820544576,1.6969,1799.4,1799.3,1.6155]
[1745820544776,2.47476,1799.4,1799.3,1.6155]
[1745820544980,3.683,1799.5,1799.3,1.6155]
[1745820545177,3.683,1799.5,1799.4,4.78226]
[1745820545581,3.683,1799.5,1799.4,45.58226]
[1745820545982,3.683,1799.5,1799.4,44.8044]
[1745820546383,3.683,1799.5,1799.4,46.5017]
[1745820546579,4.46082,1799.5,1799.4,46.5017]
[1745820549887,3.683,1799.5,1799.4,47.27956]
[1745820550288,3.683,1799.5,1799.4,46.5017]
[1745820551290,3.683,1799.5,1799.4,47.27956]
[1745820553582,1.94267,1801.3,1799.8,3.2078]
[1745820553781,3.77446174,1800.8,1800.4,3.2078]
[1745820553981,0.77739,1800.5,1800.4,3.2078]
[1745820554186,0.86985174,1800.5,1800.4,3.2078]
[1745820554491,8.77446174,1800.5,1800.4,3.2078]
[1745820554689,3.77446174,1800.5,1800.4,3.2078]
[1745820554884,3.682,1800.5,1800.4,3.2078]
[1745820555090,3.77344999,1800.5,1800.4,3.2078]
[1745820555291,6.34444999,1800.5,1800.4,3.2078]
[1745820557597,11.34444999,1800.5,1800.4,3.2078]
[1745820557796,11.34445557,1800.5,1800.2,44.0078]
[1745820557991,0.77747,1800.3,1800.2,44.0078]
[1745820558192,0.86992557,1800.3,1800.2,40.8]
[1745820558387,1.70102557,1800.3,1800.2,40.8]
[1745820558587,0.92355557,1800.3,1800.0,3.9854]
[1745820558886,6.26526706,1800.2,1800.0,3.2078]
[1745820559188,1.6283,1800.1,1800.0,44.0078]
[1745820559894,1.6283,1800.1,1800.0,3.2078]
[1745820560498,1.6283,1800.1,1800.0,4.8444]
[1745820564199,1.6283,1800.1,1800.0,5.622]
[1745820564394,3.681,1800.2,1800.1,0.77756]
[1745820564694,3.681,1800.2,1800.1,3.35496]
[1745820566096,3.681,1800.2,1800.1,2.5774]
[1745820566298,3.681,1800.2,1800.1,3.35496]
[1745820566600,3.681,1800.2,1800.1,2.5774]
[1745820566792,4.45852,1800.2,1800.1,2.5774]
[1745820567198,3.681,1800.2,1800.1,3.35496]
[1745820567694,5.888,1800.3,1800.1,3.35496]
[1745820567897,4.45841,1800.5,1800.3,0.77744]
[1745820568202,4.45841,1800.5,1800.4,4.8754]
[1745820568993,6.18911,1800.5,1800.4,3.2078]
[1745820569197,6.28155998,1800.5,1800.4,3.2078]
[1745820570297,6.18911,1800.5,1800.4,3.2078]
[1745820570497,6.28156125,1800.5,1800.4,3.2078]
[1745820571199,12.16956125,1800.5,1800.4,3.2078]
[1745820571792,12.16955954,1800.5,1800.4,3.2078]
[1745820572200,11.39214954,1800.5,1800.4,3.2078]
[1745820573093,12.16953954,1800.5,1800.4,3.2078]
[1745820573303,12.16953875,1800.5,1800.4,3.2078]
[1745820574794,0.77751,1800.3,1800.0,3.2078]
[1745820575000,6.2075,1800.2,1800.0,3.2078]
[1745820575303,1.6713,1800.1,1800.0,4.8049]
[1745820576192,5.31372,1800.2,1800.0,4.8049]
[1745820576401,4.5362,1800.2,1800.1,1.7169]
[1745820576700,3.68,1800.2,1800.1,1.7169]
[1745820578303,4.45752,1800.2,1800.1,1.7169]
[1745820579093,0.77756,1800.1,1800.0,3.2078]
[1745820579295,0.7776,1800.0,1799.9,0.8389]
[1745820579496,0.7776,1800.0,1799.9,4.0467]
[1745820579905,5.888,1800.0,1799.4,3.2078]
[1745820580101,0.77782,1799.5,1799.4,5.6816]
[1745820580401,0.77782,1799.5,1799.4,44.7938]
[1745820580607,0.77782,1799.5,1799.4,41.586]
[1745820581303,5.3246,1799.6,1799.4,41.586]
[1745820581607,4.5468,1799.6,1799.4,42.36385]
[1745820581908,4.5468,1799.6,1799.5,3.2078]
[1745820582099,3.68,1799.6,1799.5,3.98562]
[1745820584402,0.77773,1799.7,1799.5,3.98562]
[1745820584606,0.77771,1799.8,1799.6,0.77777]
[1745820584808,0.77771,1799.8,1799.7,0.8681]
[1745820586413,3.681,1799.9,1799.7,0.8681]
[1745820586414,4.45867,1799.9,1799.7,0.8681]
[1745820586599,4.45867,1799.9,1799.8,0.865]
[1745820587106,3.681,1799.9,1799.8,0.865]
[1745820588205,3.681,1799.9,1799.8,1.64269]
[1745820589910,0.8172,1800.2,1799.8,0.865]
[1745820590211,3.681,1800.1,1800.0,3.9854]
[1745820595214,9.569,1800.4,1800.3,0.77747]
[1745820595413,3.681,1800.4,1800.3,0.77747]
[1745820596418,5.3424,1800.4,1800.3,0.77747]
[1745820598112,5.3424,1800.4,1800.3,2.39337]
[1745820599520,5.3424,1800.4,1800.3,0.77747]
[1745820599817,6.11983,1800.4,1800.2,3.9853]
[1745820600020,2.4546,1800.3,1800.2,3.9853]
[1745820600319,3.3175,1800.3,1800.2,3.9853]
[1745820600821,4.09497,1800.3,1800.1,0.77756]
[1745820601020,1.6596,1800.2,1800.1,0.77756]
[1745820601423,1.6596,1800.2,1800.0,3.2078]
[1745820601424,2.43712,1800.2,1800.0,3.2078]
[1745820601624,4.45756,1800.1,1800.0,3.2078]
[1745820601915,6.11716,1800.1,1799.9,0.77762]
[1745820602117,2.4855,1800.0,1799.9,0.77762]
[1745820604614,2.4855,1800.0,1799.9,1.6386]
[1745820605313,3.2631,1800.0,1799.9,1.6386]
[1745820606515,3.68,1800.1,1799.9,1.6386]
[1745820606722,3.68,1800.1,1800.0,1.6032]
[1745820606908,3.68,1800.1,1800.0,4.811]
[1745820607114,8.2788,1800.2,1800.1,0.77756]
[1745820607313,7.45952,1800.2,1800.1,1.6193]
[1745820607614,6.682,1800.2,1800.1,2.39686]
[1745820608821,7.45952,1800.2,1800.1,2.39686]
[1745820609223,6.682,1800.2,1800.1,2.39686]
[1745820609724,7.45952,1800.2,1800.1,1.6193]
[1745820611824,6.682,1800.2,1800.1,1.6193]
[1745820612323,0.794,1800.2,1800.1,1.6193]
[1745820612525,3.28422,1800.2,1800.1,1.6193]
[1745820612715,2.5067,1800.2,1800.1,1.6193]
[1745820613016,2.5067,1800.2,1800.1,2.39686]
[1745820614527,3.28422,1800.2,1800.1,2.39686]
[1745820614827,2.5067,1800.2,1800.1,2.39686]
[1745820615424,0.77756,1800.1,1800.0,4.0334]
[1745820615622,6.17926,1800.1,1799.9,0.77763]
[1745820616127,1.7217,1800.0,1799.9,0.77763]
[1745820617420,1.7217,1800.0,1799.9,2.49003]
[1745820617619,1.7217,1800.0,1799.9,3.35083]
[1745820618135,3.68,1800.1,1800.0,0.7776]
[1745820618323,3.68,1800.1,1800.0,2.49]
[1745820619131,5.3647,1800.1,1800.0,2.49]
[1745820619631,3.68,1800.1,1800.0,2.49]
[1745820622834,3.68,1800.1,1800.0,1.7124]
[1745820623034,6.05096,1800.1,1799.9,1.63842]
[1745820623235,1.5934,1800.0,1799.9,3.21222]
[1745820623535,2.371,1800.0,1799.8,3.98547]
[1745820623726,0.8027,1799.9,1799.8,3.98547]
[1745820623932,2.3961,1799.9,1799.8,3.98547]
[1745820624838,2.3961,1799.9,1799.8,3.2078]
[1745820625034,2.3961,1799.9,1799.8,3.98549]
[1745820629733,5.888,1800.3,1799.8,8.2078]
[1745820629936,0.77756,1800.1,1800.0,3.2078]
[1745820630337,2.45586,1800.1,1800.0,3.2078]
[1745820630538,1.94403,1800.0,1799.0,3.2078]
[1745820630735,0.77799,1799.1,1798.8,7.36069522]
[1745820630933,5.888,1799.1,1798.8,10.56849522]
[1745820631237,0.77812,1798.8,1798.7,7.03328283]
[1745820631443,10.34612,1798.8,1798.7,7.03328283]
[1745820631636,9.568,1798.8,1798.7,7.03328283]
[1745820631939,11.1641,1798.8,1798.7,7.81144283]
[1745820632935,11.1641,1798.8,1798.7,0.77816]
[1745820634036,10.2761,1798.8,1798.3,3.2078]
[1745820634243,0.77816,1798.7,1798.4,0.77828]
[1745820634437,1.6281,1798.6,1798.4,2.41958]
[1745820634741,1.6281,1798.6,1798.5,3.2078]
[1745820635338,2.4295,1798.6,1798.5,3.2078]
[1745820635538,2.4295,1798.6,1798.4,1.6413]
[1745820635741,0.8014,1798.6,1798.5,3.2078]
[1745820635938,0.8014,1798.6,1798.5,3.98605]
[1745820636841,0.8014,1798.6,1798.5,3.2078]
[1745820637241,0.8014,1798.6,1798.5,4.902]
[1745820638443,3.2078,1799.0,1798.5,4.902]
[1745820638745,3.681,1798.9,1798.8,3.2078]
[1745820639041,5.3049,1798.9,1798.8,45.702]
[1745820639543,5.3049,1798.9,1798.8,46.48012]
[1745820640743,5.3049,1798.9,1798.8,45.702]
[1745820640941,6.08298,1798.9,1798.8,45.702]
[1745820641841,5.3049,1798.9,1798.8,46.48012]
[1745820643146,5.3049,1798.9,1798.8,45.702]
[1745820643544,6.1011,1798.9,1798.8,46.48012]
[1745820643947,3.681,1798.9,1798.8,46.48012]
[1745820650150,5.888,1799.1,1799.0,0.77803]
[1745820650350,5.888,1799.1,1799.0,3.98583]
[1745820650553,3.682,1799.2,1799.1,0.77799]
[1745820650848,3.682,1799.2,1799.1,1.61139]
[1745820651052,3.682,1799.2,1799.1,3.21159]
[1745820652654,3.682,1799.2,1799.1,0.77799]
[1745820652850,5.2565,1799.2,1799.1,0.77799]
[1745820655252,5.2565,1799.2,1799.1,2.52169]
[1745820657955,0.8495,1799.4,1799.1,1.7437]
[1745820658156,7.7606,1799.7,1799.6,0.77777]
[1745820658555,9.3414,1799.7,1799.6,0.77777]
[1745820659952,3.682,1799.7,1799.6,0.77777]
[1745820660348,3.682,1799.7,1799.6,2.44367]
[1745820660751,3.682,1799.7,1799.6,3.26187]
[1745820661258,3.681,1800.0,1799.9,0.77762]
[1745820662156,5.3786,1800.0,1799.9,0.77762]
[1745820662452,5.3786,1800.0,1799.9,41.57762]
[1745820663553,3.681,1800.0,1799.9,44.78542]
[1745820663750,3.681,1800.0,1799.9,43.24432]
[1745820663951,3.681,1800.0,1799.9,40.8]
[1745820664152,6.0487,1800.0,1799.9,40.8]
[1745820669167,5.2711,1800.0,1799.9,40.8]
[1745820669355,5.2711,1800.0,1799.9,41.57764]
[1745820669556,5.2711,1800.0,1799.9,40.8]
[1745820669756,6.0487,1800.0,1799.9,40.8]
[1745820669957,3.681,1800.0,1799.9,43.22104]
[1745820670655,3.681,1800.0,1799.9,42.4434]
[1745820671058,4.4586,1800.0,1799.9,42.4434]
[1745820671758,4.4586,1800.0,1799.9,40.8]
[1745820671958,6.0995,1800.0,1799.9,40.8]
[1745820672160,6.19197588,1800.0,1799.9,40.8]
[1745820672459,6.19197546,1800.0,1799.9,40.8]
[1745820672762,4.55107546,1800.0,1799.9,40.8]
[1745820672965,6.1755,1800.0,1799.9,41.57764]
[1745820673159,4.5346,1800.0,1799.9,43.23464]
[1745820673463,3.681,1800.0,1799.9,43.23464]
[1745820673964,3.681,1800.0,1799.9,46.44244]
[1745820678163,4.4586,1800.0,1799.9,45.6648]
[1745820678763,3.681,1800.0,1799.9,45.6648]
[1745820679262,3.681,1800.0,1799.9,46.44244]
[1745820681667,4.4586,1800.0,1799.9,46.44244]
[1745820682764,3.681,1800.0,1799.9,46.44244]
[1745820683062,5.888,1800.4,1799.9,45.6648]
[1745820683261,0.77749,1800.3,1800.1,0.77752]
[1745820683451,0.77749,1800.3,1800.2,1.6156]
[1745820683859,2.36489,1800.3,1800.2,1.6156]
[1745820685862,2.4573491,1800.3,1800.0,2.41496]
[1745820686071,2.35982,1800.2,1800.1,1.7056]
[1745820686671,2.35982,1800.2,1800.0,1.60706]
[1745820686967,3.1818,1800.1,1800.0,0.7776]
[1745820687172,3.1818,1800.1,1799.9,45.7134]
[1745820687367,3.1818,1800.1,1800.0,0.7776]
[1745820687562,3.1818,1800.1,1800.0,2.4832]
[1745820688173,3.95936,1800.1,1800.0,2.4832]
[1745820688373,3.95936,1800.1,1800.0,1.7056]
[1745820689079,0.77754,1800.2,1800.0,2.5661]
[1745820689268,0.77754,1800.2,1800.1,1.671]
[1745820689470,2.36294,1800.2,1800.1,1.671]
[1745820691073,0.77756,1800.1,1800.0,0.8605]
[1745820691273,6.727,1800.3,1800.0,0.8605]
[1745820691478,7.5045,1800.3,1800.1,1.7217]
[1745820691776,7.5045,1800.3,1800.1,2.5428]
[1745820691973,0.77752,1800.2,1800.1,2.5428]
[1745820692272,7.5045,1800.3,1800.1,0.8211]
[1745820692472,5.888,1800.3,1800.1,1.59863]
[1745820692774,0.77752,1800.2,1800.1,0.8211]
[1745820693470,0.77756,1800.1,1800.0,0.8605]
[1745820693670,0.77756,1800.1,1800.0,1.6381]
[1745820693871,1.64135,1800.2,1800.0,1.6381]
[1745820694075,1.64132,1800.2,1800.1,3.2078]
[1745820695563,0.77752,1800.2,1800.1,3.98536]
[1745820695772,0.77752,1800.2,1800.1,4.0358]
[1745820697879,0.77749,1800.3,1800.1,4.0358]
[1745820698574,0.77749,1800.3,1800.1,4.81334]
[1745820698979,0.77752,1800.2,1800.1,4.0358]
[1745820699179,0.77752,1800.2,1800.1,3.2078]
[1745820699576,0.7775,1800.3,1800.1,3.98535]
[1745820700481,12.02696,1800.4,1800.2,0.77752]
[1745820701283,10.4354,1800.4,1800.1,3.2078]
[1745820701483,10.4354,1800.4,1800.3,0.77747]
[1745820701781,4.5474,1800.4,1800.3,0.77747]
[1745820701977,5.32484,1800.4,1800.1,4.83633]
[1745820702979,0.77748,1800.3,1800.1,4.83633]
[1745820705679,5.32486,1800.4,1800.2,0.77751]
[1745820705875,5.32486,1800.4,1800.3,0.8678]
[1745820706677,3.68,1800.4,1800.3,4.85307]
[1745820707083,4.45743,1800.4,1800.3,0.8678]
[1745820708185,4.45743,1800.4,1800.3,2.4896]
[1745820709588,6.17583,1800.4,1800.3,2.4896]
[1745820710785,6.17583,1800.4,1800.3,1.6218]
[1745820714396,0.77747,1800.3,1800.2,3.2078]
[1745820714692,3.30097,1800.3,1800.2,3.2078]
[1745820715791,0.77752,1800.2,1800.1,1.5952]
[1745820715988,3.23132,1800.2,1800.1,1.5952]